fUSD/lending_fUSD_20240729
["ID","MTS","AMOUNT","RATE_DAILY","PERIOD"]
[333584827,1722258657655,-151.0,0.00010999,2]
[333584828,1722258657664,-151.0,0.00010999,2]
[333584829,1722258657674,-1224.78,0.00010999,2]
[333584830,1722258657683,-151.0,0.00010999,2]
[333584831,1722258657692,-1224.78,0.00010999,2]
[333584832,1722258657701,-1224.78,0.00010999,2]
[333584833,1722258657710,-1224.78,0.00010999,2]
[333584834,1722258657720,-197.78152062,0.00010999,2]
[333584835,1722258657731,-639.14654176,0.00010999,2]
[333584836,1722258657743,-387.85193762,0.00010999,2]
[333584837,1722258657752,-161.04806238,0.00010999,2]
[333584838,1722258657763,-1224.56193762,0.00010999,2]
[333584839,1722258657772,-500.0,0.00010999,2]
[333584840,1722258657782,-500.0,0.00010999,2]
[333584841,1722258657792,-500.0,0.00010999,2]
[333584842,1722258657801,-500.0,0.00010999,2]
[333584843,1722258657810,-500.0,0.00010999,2]
[333584844,1722258657820,-1224.78,0.00010999,2]
[333584845,1722258657830,-500.0,0.00010999,2]
[333584846,1722258657839,-1224.78,0.00010999,2]
[333584847,1722258657849,-500.0,0.00010999,2]
[333584848,1722258657858,-500.0,0.00010999,2]
[333584849,1722258657867,-1224.78,0.00010999,2]
[333584850,1722258657877,-249.4,0.00010999,2]
[333584851,1722258657887,-1224.78,0.00010999,2]
[333584852,1722258657896,-1385.61,0.00010999,2]
[333584853,1722258657906,-1224.78,0.00010999,2]
[333584854,1722258657915,-1385.61,0.00010999,2]
[333584855,1722258657925,-1224.93501554,0.00010999,2]
[333584856,1722258657935,-356.69,0.00010999,2]
[333584857,1722258657945,-1385.61,0.00010999,2]
[333584858,1722258657954,-1385.61,0.00010999,2]
[333584859,1722258657963,-1385.61,0.00010999,2]
[333584860,1722258657973,-1385.61,0.00010999,2]
[333584861,1722258657982,-1385.61,0.00010999,2]
[333584862,1722258657994,-1385.61,0.00010999,2]
[333584863,1722258658003,-1385.61,0.00010999,2]
[333584864,1722258658014,-173.29,0.00010999,2]
[333584865,1722258658024,-1385.61,0.00010999,2]
[333584866,1722258658033,-510.54,0.00010999,2]
[333584867,1722258658042,-1385.61,0.00010999,2]
[333584868,1722258658051,-510.54,0.00010999,2]
[333584869,1722258658060,-1385.61,0.00010999,2]
[333584870,1722258658070,-510.54,0.00010999,2]
[333584871,1722258658084,-500.0,0.00010999,2]
[333584872,1722258658093,-1385.61,0.00010999,2]
[333584873,1722258658102,-510.54,0.00010999,2]
[333584874,1722258658112,-500.0,0.00010999,2]
[333584875,1722258658122,-510.54,0.00010999,2]
[333584876,1722258658131,-1385.61,0.00010999,2]
[333584877,1722258658141,-500.0,0.00010999,2]
[333584878,1722258658150,-500.0,0.00010999,2]
[333584879,1722258658161,-500.0,0.00010999,2]
[333584880,1722258658171,-1385.61,0.00010999,2]
[333584881,1722258658181,-1385.8232,0.00010999,2]
[333584882,1722258658191,-510.54,0.00010999,2]
[333584883,1722258658200,-510.54,0.00010999,2]
[333584884,1722258658210,-500.0,0.00010999,2]
[333584885,1722258658220,-500.0,0.00010999,2]
[333584886,1722258658230,-500.0,0.00010999,2]
[333584887,1722258658239,-510.54,0.00010999,2]
[333584888,1722258658249,-500.0,0.00010999,2]
[333584889,1722258658259,-500.0,0.00010999,2]
[333584890,1722258658268,-510.54,0.00010999,2]
[333584891,1722258658278,-500.0,0.00010999,2]
[333584892,1722258658288,-500.0,0.00010999,2]
[333584893,1722258658297,-510.54,0.00010999,2]
[333584894,1722258658307,-500.0,0.00010999,2]
[333584895,1722258658316,-500.0,0.00010999,2]
[333584896,1722258658325,-510.54,0.00010999,2]
[333584897,1722258658335,-500.0,0.00010999,2]
[333584898,1722258658344,-510.54,0.00010999,2]
[333584899,1722258658354,-154.49,0.00010999,2]
[333584900,1722258658363,-500.0,0.00010999,2]
[333584901,1722258658372,-500.0,0.00010999,2]
[333584902,1722258658382,-531.3,0.00010999,2]
[333584903,1722258658391,-276.22,0.00010999,2]
[333584904,1722258658400,-531.3,0.00010999,2]
[333584905,1722258658410,-531.3,0.00010999,2]
[333584906,1722258658421,-531.3,0.00010999,2]
[333584907,1722258658433,-531.3,0.00010999,2]
[333584908,1722258658442,-531.3,0.00010999,2]
[333584909,1722258658452,-500.0,0.00010999,2]
[333584910,1722258658463,-531.3,0.00010999,2]
[333584911,1722258658472,-531.3,0.00010999,2]
[333584912,1722258658482,-531.3,0.00010999,2]
[333584913,1722258658491,-500.0,0.00010999,2]
[333584914,1722258658501,-531.3,0.00010999,2]
[333584915,1722258658511,-500.0,0.00010999,2]
[333584916,1722258658520,-531.3,0.00010999,2]
[333584917,1722258658530,-531.3,0.00010999,2]
[333584918,1722258658539,-531.3,0.00010999,2]
[333584919,1722258658548,-531.3,0.00010999,2]
[333584920,1722258658558,-531.3,0.00010999,2]
[333584921,1722258658567,-510.54,0.00010999,2]
[333584922,1722258658576,-531.3,0.00010999,2]
[333584923,1722258658586,-510.54,0.00010999,2]
[333584924,1722258658595,-531.3,0.00010999,2]
[333584925,1722258658604,-531.47184232,0.00010999,2]
[333584926,1722258658614,-510.54,0.00010999,2]
[333584927,1722258658623,-510.54,0.00010999,2]
[333584928,1722258658632,-510.54,0.00010999,2]
[333584929,1722258658643,-510.54,0.00010999,2]
[333584930,1722258658652,-500.0,0.00010999,2]
[333584931,1722258658662,-510.54,0.00010999,2]
[333584932,1722258658673,-510.54,0.00010999,2]
[333584933,1722258658682,-500.0,0.00010999,2]
[333584934,1722258658692,-510.54,0.00010999,2]
[333584935,1722258658701,-500.0,0.00010999,2]
[333584936,1722258658711,-510.54,0.00010999,2]
[333584937,1722258658720,-500.0,0.00010999,2]
[333584938,1722258658729,-510.57027793,0.00010999,2]
[333584939,1722258658739,-500.0,0.00010999,2]
[333584940,1722258658748,-219.67712459,0.00010999,2]
[333584941,1722258658763,-280.32287541,0.00010999,2]
[333584942,1722258658772,-440.01,0.00010999,2]
[333584943,1722258658782,-500.0,0.00010999,2]
[333584944,1722258658791,-500.0,0.00010999,2]
[333584945,1722258658800,-899.06,0.00010999,2]
[333584946,1722258658810,-745.15567698,0.00010999,2]
[333584947,1722258658821,-153.90432302,0.00010999,2]
[333584948,1722258658831,-389.53134076,0.00010999,2]
[333584949,1722258658849,-110.46865924,0.00010999,2]
[333584950,1722258658859,-658.94051813,0.00010999,2]
[333584951,1722258658870,-240.11948187,0.00010999,2]
[333584952,1722258658879,-413.19322505,0.00010999,2]
[333584953,1722258658903,-86.80677495,0.00010999,2]
[333584954,1722258658912,-899.06,0.00010999,2]
[333584955,1722258658923,-500.0,0.00010999,2]
[333584956,1722258658933,-899.06,0.00010999,2]
[333584957,1722258658943,-500.0,0.00010999,2]
[333584958,1722258658952,-899.06,0.00010999,2]
[333584959,1722258658961,-500.0,0.00010999,2]
[333584960,1722258658971,-500.0,0.00010999,2]
[333584961,1722258658980,-500.0,0.00010999,2]
[333584962,1722258658989,-507.98516411,0.00010999,2]
[333584963,1722258658998,-500.0,0.00010999,2]
[333584964,1722258659008,-500.0,0.00010999,2]
[333584965,1722258659018,-500.0,0.00010999,2]
[333584966,1722258659028,-589.69,0.00010999,2]
[333584967,1722258659038,-899.06,0.00010999,2]
[333584968,1722258659047,-899.06,0.00010999,2]
[333584969,1722258659057,-899.06,0.00010999,2]
[333584970,1722258659067,-899.06,0.00010999,2]
[333584971,1722258659078,-899.06,0.00010999,2]
[333584972,1722258659089,-899.06,0.00010999,2]
[333584973,1722258659099,-514.94,0.00010999,2]
[333584974,1722258659108,-899.06,0.00010999,2]
[333584975,1722258659118,-514.94,0.00010999,2]
[333584976,1722258659128,-899.06,0.00010999,2]
[333584977,1722258659137,-899.06,0.00010999,2]
[333584978,1722258659146,-514.94,0.00010999,2]
[333584979,1722258659158,-899.06,0.00010999,2]
[333584980,1722258659167,-899.06,0.00010999,2]
[333584981,1722258659179,-514.94,0.00010999,2]
[333584982,1722258659189,-899.06,0.00010999,2]
[333584983,1722258659198,-514.94,0.00010999,2]
[333584984,1722258659208,-514.94,0.00010999,2]
[333584985,1722258659217,-899.06,0.00010999,2]
[333584986,1722258659227,-899.06,0.00010999,2]
[333584987,1722258659236,-514.94,0.00010999,2]
[333584988,1722258659245,-514.94,0.00010999,2]
[333584989,1722258659255,-899.06,0.00010999,2]
[333584990,1722258659264,-899.06,0.00010999,2]
[333584991,1722258659274,-899.08,0.00010999,2]
[333584992,1722258659283,-500.0,0.00010999,2]
[333584993,1722258659293,-514.94,0.00010999,2]
[333584994,1722258659302,-477.93718098,0.00010999,2]
[333584995,1722258659312,-514.94,0.00010999,2]
[333584996,1722258659322,-514.94,0.00010999,2]
[333584997,1722258659332,-514.94,0.00010999,2]
[333584998,1722258659342,-514.94,0.00010999,2]
[333584999,1722258659351,-514.94,0.00010999,2]
[333585000,1722258659361,-514.94,0.00010999,2]
[333585001,1722258659370,-514.94,0.00010999,2]
[333585002,1722258659379,-514.94,0.00010999,2]
[333585003,1722258659388,-514.94,0.00010999,2]
[333585004,1722258659398,-1048.12,0.00010999,2]
[333585005,1722258659408,-515.03921042,0.00010999,2]
[333585006,1722258659418,-1048.12,0.00010999,2]
[333585007,1722258659431,-1048.12,0.00010999,2]
[333585008,1722258659441,-1048.12,0.00010999,2]
[333585009,1722258659450,-1048.12,0.00010999,2]
[333585010,1722258659460,-1048.12,0.00010999,2]
[333585011,1722258659469,-1048.12,0.00010999,2]
[333585012,1722258659480,-1048.12,0.00010999,2]
[333585013,1722258659489,-500.0,0.00010999,2]
[333585014,1722258659499,-1048.12,0.00010999,2]
[333585015,1722258659509,-602.81,0.00010999,2]
[333585016,1722258659518,-1048.12,0.00010999,2]
[333585017,1722258659528,-1048.12,0.00010999,2]
[333585018,1722258659537,-1048.12,0.00010999,2]
[333585019,1722258659547,-1048.12,0.00010999,2]
[333585020,1722258659556,-1048.12,0.00010999,2]
[333585021,1722258659566,-1048.12,0.00010999,2]
[333585022,1722258659575,-750.84,0.00010999,2]
[333585023,1722258659584,-1048.12,0.00010999,2]
[333585024,1722258659594,-595.66,0.00010999,2]
[333585025,1722258659603,-1048.12,0.00010999,2]
[333585026,1722258659612,-1048.12,0.00010999,2]
[333585027,1722258659621,-595.66,0.00010999,2]
[333585028,1722258659630,-1048.12,0.00010999,2]
[333585029,1722258659639,-595.66,0.00010999,2]
[333585030,1722258659649,-1048.27715065,0.00010999,2]
[333585031,1722258659658,-595.66,0.00010999,2]
[333585032,1722258659667,-750.84,0.00010999,2]
[333585033,1722258659682,-595.66,0.00010999,2]
[333585034,1722258659691,-595.66,0.00010999,2]
[333585035,1722258659700,-750.84,0.00010999,2]
[333585036,1722258659711,-301.452,0.00011,2]
[333585037,1722258659720,-302114.07395525,0.00011,2]
[333585038,1722258659730,-18207.0,0.00011,2]
[333585039,1722258659739,-896630.42446836,0.00011,2]
[333585040,1722258659772,-265.6000002,0.00010999,2]
[333585041,1722258659783,-319.999995,0.00010999,2]
[333585042,1722258659795,-10.0600048,0.00010999,2]
[333585043,1722258659804,-750.84,0.00010999,2]
[333585044,1722258659813,-69193.09999525,0.00011,2]
[333585045,1722258660301,-595.66,0.00010999,2]
[333585046,1722258660311,-595.66,0.00010999,2]
[333585047,1722258660320,-565.0858,0.00010999,2]
[333585048,1722258660331,-30.5742,0.00010999,2]
[333585049,1722258660341,-595.66,0.00010999,2]
[333585050,1722258660350,-595.66,0.00010999,2]
[333585051,1722258660359,-131.61392905,0.00010999,2]
[333585052,1722258660380,-464.04607095,0.00010999,2]
[333585053,1722258660390,-750.84,0.00010999,2]
[333585054,1722258660399,-750.84,0.00010999,2]
[333585055,1722258660408,-4305.67392905,0.00011,2]
[333585056,1722258660563,-161.0254473,8.219e-05,2]
[333585057,1722258660572,-518.2478527,0.00010999,2]
[333585058,1722258660593,-232.5921473,0.00010999,2]
[333585059,1722258660602,-411.69603736,0.00010999,2]
[333585060,1722258660623,-183.96396264,0.00010999,2]
[333585061,1722258660633,-750.84,0.00010999,2]
[333585062,1722258660642,-164.45211486,0.00010999,2]
[333585063,1722258660653,-343.53915486,0.00010999,2]
[333585078,1722259078324,-1141.674694,8.178e-05,2]
[333585079,1722259078345,-181.34243174,8.219e-05,2]
[333585080,1722259078365,-151.30090361,8.219e-05,2]
[333585081,1722259078387,-535.35,8.219e-05,2]
[333585082,1722259078408,-2000.0,9.701e-05,2]
[333585083,1722259078428,-200.0,9.79e-05,2]
[333585084,1722259078449,-300.0,9.802e-05,2]
[333585085,1722259078470,-23900.0,9.803e-05,2]
[333585086,1722259078491,-10000.0,9.866e-05,2]
[333585087,1722259078512,-567.08,9.935e-05,2]
[333585088,1722259078533,-371.5992053,0.0001,2]
[333585089,1722259078554,-500.0,0.00010068,2]
[333585090,1722259078575,-499.99,0.00010068,2]
[333585091,1722259078596,-178.16,0.00010164,2]
[333585092,1722259078617,-462.23,0.00010224,2]
[333585093,1722259078639,-641.4,0.00010439,2]
[333585094,1722259078660,-535.35,0.00010471,2]
[333585095,1722259078682,-186.91137478,0.00010476,2]
[333585096,1722259078703,-14366.25712607,0.00010555,2]
[333585097,1722259078724,-79663.0,0.00010566,2]
[333585098,1722259078746,-186.91137477,0.00010581,2]
[333585099,1722259078769,-500.0,0.00010645,2]
[333585100,1722259078789,-500.0,0.00010654,2]
[333585101,1722259078809,-500.0,0.00010662,2]
[333585102,1722259078830,-500.0,0.00010671,2]
[333585103,1722259078851,-197.60189447,0.00010672,2]
[333585104,1722259078871,-150.0,0.00010672,2]
[333585105,1722259078892,-500.0,0.0001068,2]
[333585106,1722259078912,-186.91137477,0.00010686,2]
[333585107,1722259078932,-828.3,0.00010686,2]
[333585108,1722259078953,-500.0,0.00010689,2]
[333585109,1722259078974,-500.0,0.00010698,2]
[333585110,1722259078995,-500.0,0.00010706,2]
[333585111,1722259079016,-500.0,0.00010715,2]
[333585112,1722259079036,-500.0,0.00010724,2]
[333585113,1722259079056,-420.0,0.00010782,2]
[333585114,1722259079076,-186.91137477,0.00010791,2]
[333585115,1722259079096,-30653.9396,0.00010799,2]
[333585116,1722259079117,-67021.0,0.000108,2]
[333585117,1722259079138,-9643.61360645,0.0001089,2]
[333585118,1722259079159,-279.9178,0.00010896,2]
[333585119,1722259079181,-839.1135,0.00010898,2]
[333585120,1722259079203,-1286.0501,0.00010899,2]
[333585121,1722259079228,-3854.5694,0.00010899,2]
[333585122,1722259079251,-2450.376,0.00010899,2]
[333585124,1722259079272,-331.6237,0.00010899,2]
[333585125,1722259079296,-337.6875,0.00010899,2]
[333585126,1722259079317,-5335.28447855,0.00010899,2]
[333585127,1722259079338,-5335.28447848,0.00010899,2]
[333585128,1722259079360,-5335.28447848,0.00010899,2]
[333585129,1722259079382,-5335.28447848,0.00010899,2]
[333585130,1722259079403,-5335.28447848,0.00010899,2]
[333585131,1722259079425,-5335.28447848,0.00010899,2]
[333585132,1722259079447,-5335.28447848,0.00010899,2]
[333585133,1722259079470,-5335.28447848,0.00010899,2]
[333585134,1722259079492,-5335.28447848,0.00010899,2]
[333585135,1722259079515,-618.59012886,0.00010899,2]
[333585136,1722259079537,-618.59012883,0.00010899,2]
[333585137,1722259079559,-618.59012883,0.000109,2]
[333585138,1722259079579,-618.59012883,0.000109,2]
[333585139,1722259079600,-1646.78843417,0.000109,2]
[333585140,1722259079623,-5335.28447848,0.000109,2]
[333585141,1722259079644,-618.59012883,0.000109,2]
[333585142,1722259079664,-753.7732008,0.000109,2]
[333585143,1722259079685,-500.0,0.00010912,2]
[333585144,1722259079707,-500.0,0.00010958,2]
[333585145,1722259079728,-500.0,0.00010958,2]
[333585146,1722259079751,-500.0,0.00010958,2]
[333585147,1722259079772,-500.0,0.00010958,2]
[333585148,1722259079794,-379.24,0.00010958,2]
[333585149,1722259079815,-500.0,0.00010958,2]
[333585150,1722259079840,-500.0,0.00010958,2]
[333585151,1722259079862,-500.0,0.00010958,2]
[333585152,1722259079884,-500.0,0.00010958,2]
[333585153,1722259079906,-500.0,0.00010958,2]
[333585154,1722259079927,-200.0,0.00010959,2]
[333585155,1722259080138,-2044.95,0.00010959,2]
[333585156,1722259080160,-150.0,0.00010959,2]
[333585157,1722259080181,-500.0,0.00010995,2]
[333585158,1722259080206,-500.0,0.00010995,2]
[333585159,1722259080233,-500.0,0.00010996,2]
[333585160,1722259080257,-500.0,0.00010996,2]
[333585161,1722259080279,-500.0,0.00010996,2]
[333585162,1722259080304,-636.03,0.00010996,2]
[333585163,1722259080327,-500.0,0.00010996,2]
[333585164,1722259080349,-500.0,0.00010996,2]
[333585165,1722259080370,-500.0,0.00010996,2]
[333585166,1722259080397,-500.0,0.00010996,2]
[333585167,1722259080419,-500.0,0.00010996,2]
[333585168,1722259080440,-500.0,0.00010996,2]
[333585169,1722259080461,-500.0,0.00010996,2]
[333585170,1722259080483,-500.0,0.00010996,2]
[333585171,1722259080511,-500.0,0.00010996,2]
[333585172,1722259080533,-500.0,0.00010996,2]
[333585173,1722259080555,-500.0,0.00010996,2]
[333585174,1722259080576,-500.0,0.00010996,2]
[333585175,1722259080597,-500.0,0.00010996,2]
[333585176,1722259080622,-500.0,0.00010996,2]
[333585177,1722259080642,-510.13863456,0.00010996,2]
[333585178,1722259080662,-500.0,0.00010996,2]
[333585179,1722259080683,-500.0,0.00010996,2]
[333585180,1722259080703,-500.0,0.00010996,2]
[333585181,1722259080723,-500.0,0.00010996,2]
[333585182,1722259080745,-500.0,0.00010996,2]
[333585183,1722259080765,-500.0,0.00010996,2]
[333585184,1722259080786,-500.0,0.00010996,2]
[333585185,1722259080806,-500.0,0.00010996,2]
[333585186,1722259080827,-500.0,0.00010996,2]
[333585187,1722259080847,-500.0,0.00010996,2]
[333585188,1722259080868,-500.0,0.00010996,2]
[333585189,1722259080888,-500.0,0.00010996,2]
[333585190,1722259080908,-500.0,0.00010996,2]
[333585191,1722259080928,-500.0,0.00010996,2]
[333585192,1722259080949,-500.0,0.00010996,2]
[333585193,1722259080970,-298.84550232,0.00010996,2]
[333585194,1722259080990,-500.0,0.00010996,2]
[333585195,1722259081012,-500.0,0.00010996,2]
[333585196,1722259081032,-500.0,0.00010996,2]
[333585197,1722259081052,-500.0,0.00010996,2]
[333585198,1722259081075,-2829.92,0.00010996,2]
[333585199,1722259081095,-500.0,0.00010996,2]
[333585200,1722259081116,-500.0,0.00010996,2]
[333585201,1722259081136,-500.0,0.00010996,2]
[333585202,1722259081156,-266.31483415,0.00010996,2]
[333585203,1722259081179,-500.0,0.00010996,2]
[333585204,1722259081201,-500.0,0.00010996,2]
[333585205,1722259081225,-154.0234322,0.00010996,2]
[333585206,1722259081248,-500.0,0.00010996,2]
[333585207,1722259081269,-500.0,0.00010996,2]
[333585208,1722259081293,-500.0,0.00010996,2]
[333585209,1722259081313,-500.0,0.00010996,2]
[333585210,1722259081335,-773.08,0.00010996,2]
[333585211,1722259081357,-485.05,0.00010997,2]
[333585212,1722259081377,-1073.0,0.00010997,2]
[333585213,1722259081398,-1370.0,0.00010997,2]
[333585214,1722259081419,-500.0,0.00010998,2]
[333585215,1722259081439,-500.0,0.00010998,2]
[333585216,1722259081460,-500.0,0.00010998,2]
[333585217,1722259081485,-500.0,0.00010998,2]
[333585218,1722259081508,-500.23382654,0.00010998,2]
[333585219,1722259081529,-154.13946205,0.00010998,2]
[333585220,1722259081550,-450.74908097,0.00010998,2]
[333585221,1722259081572,-644.74084553,0.00010998,2]
[333585222,1722259081593,-501.09149038,0.00010998,2]
[333585223,1722259081613,-500.0,0.00010998,2]
[333585224,1722259081635,-500.0,0.00010998,2]
[333585225,1722259081655,-500.0,0.00010998,2]
[333585226,1722259081679,-500.0,0.00010998,2]
[333585227,1722259081699,-619.88652372,0.00010998,2]
[333585228,1722259081720,-500.0,0.00010998,2]
[333585229,1722259081743,-512.38640263,0.00010998,2]
[333585230,1722259081764,-500.0,0.00010998,2]
[333585231,1722259081785,-500.0,0.00010998,2]
[333585232,1722259081806,-500.0,0.00010998,2]
[333585233,1722259081826,-500.0,0.00010998,2]
[333585234,1722259081847,-500.0,0.00010998,2]
[333585235,1722259081868,-500.0,0.00010998,2]
[333585236,1722259081889,-500.0,0.00010998,2]
[333585237,1722259081910,-500.0,0.00010998,2]
[333585238,1722259081931,-504.40771491,0.00010998,2]
[333585239,1722259081951,-507.0713571,0.00010998,2]
[333585240,1722259081971,-502.03540378,0.00010998,2]
[333585241,1722259081991,-500.0,0.00010998,2]
[333585242,1722259082015,-500.0,0.00010998,2]
[333585243,1722259082035,-457.0,0.00010998,2]
[333585244,1722259082058,-500.0,0.00010998,2]
[333585245,1722259082080,-500.0,0.00010998,2]
[333585246,1722259082102,-500.0,0.00010998,2]
[333585247,1722259082124,-500.0,0.00010998,2]
[333585248,1722259082145,-504.97856787,0.00010998,2]
[333585249,1722259082165,-500.0,0.00010998,2]
[333585250,1722259082185,-500.0,0.00010998,2]
[333585251,1722259082207,-500.0,0.00010998,2]
[333585252,1722259082232,-500.0,0.00010998,2]
[333585253,1722259082255,-500.0,0.00010998,2]
[333585254,1722259082275,-500.0,0.00010998,2]
[333585255,1722259082297,-500.0,0.00010998,2]
[333585256,1722259082319,-500.0,0.00010998,2]
[333585257,1722259082340,-500.0,0.00010998,2]
[333585258,1722259082362,-500.0,0.00010998,2]
[333585259,1722259082384,-510.37629984,0.00010998,2]
[333585260,1722259082407,-500.0,0.00010998,2]
[333585261,1722259082427,-386.45327412,0.00010998,2]
[333585262,1722259082448,-500.0,0.00010998,2]
[333585263,1722259082469,-500.0,0.00010998,2]
[333585264,1722259082491,-500.0,0.00010998,2]
[333585265,1722259082514,-500.0,0.00010998,2]
[333585266,1722259082537,-500.0,0.00010998,2]
[333585267,1722259082558,-500.0,0.00010998,2]
[333585268,1722259082578,-500.0,0.00010998,2]
[333585269,1722259082598,-500.0,0.00010998,2]
[333585270,1722259082619,-500.0,0.00010998,2]
[333585271,1722259082639,-500.0,0.00010998,2]
[333585272,1722259082660,-333.59645242,0.00010998,2]
[333585273,1722259082680,-500.0,0.00010998,2]
[333585274,1722259082701,-500.0,0.00010998,2]
[333585275,1722259082721,-500.0,0.00010998,2]
[333585276,1722259082741,-500.0,0.00010998,2]
[333585277,1722259082767,-322.56152394,0.00010998,2]
[333585278,1722259082788,-500.0,0.00010998,2]
[333585279,1722259082811,-2829.92,0.00010998,2]
[333585280,1722259082833,-2829.92,0.00010998,2]
[333585281,1722259082856,-2829.92,0.00010998,2]
[333585282,1722259082878,-2829.92,0.00010998,2]
[333585283,1722259082898,-500.0,0.00010998,2]
[333585284,1722259082918,-370.76045648,0.00010998,2]
[333585285,1722259082941,-500.0,0.00010998,2]
[333585286,1722259082963,-500.0,0.00010998,2]
[333585287,1722259082985,-500.0,0.00010998,2]
[333585288,1722259083008,-253.12265012,0.00010998,2]
[333585289,1722259083033,-500.0,0.00010998,2]
[333585290,1722259083055,-500.0,0.00010998,2]
[333585291,1722259083076,-500.0,0.00010998,2]
[333585292,1722259083099,-500.0,0.00010998,2]
[333585293,1722259083121,-500.0,0.00010998,2]
[333585294,1722259083144,-500.0,0.00010998,2]
[333585295,1722259083167,-500.0,0.00010998,2]
[333585296,1722259083191,-500.0,0.00010998,2]
[333585297,1722259083217,-500.0,0.00010998,2]
[333585298,1722259083239,-500.0,0.00010998,2]
[333585299,1722259083265,-500.0,0.00010998,2]
[333585300,1722259083287,-500.000001,0.00010998,2]
[333585301,1722259083310,-500.0,0.00010998,2]
[333585302,1722259083333,-500.0,0.00010998,2]
[333585303,1722259083356,-500.0,0.00010998,2]
[333585304,1722259083546,-500.0,0.00010998,2]
[333585305,1722259083574,-500.0,0.00010998,2]
[333585306,1722259083601,-500.0,0.00010998,2]
[333585307,1722259083625,-500.0,0.00010998,2]
[333585308,1722259083646,-500.0,0.00010998,2]
[333585309,1722259083669,-500.0,0.00010998,2]
[333585310,1722259083691,-500.0,0.00010998,2]
[333585311,1722259083714,-773.08,0.00010998,2]
[333585312,1722259083736,-773.08,0.00010998,2]
[333585313,1722259083762,-773.08,0.00010998,2]
[333585314,1722259083784,-773.08,0.00010998,2]
[333585315,1722259083806,-500.0,0.00010998,2]
[333585316,1722259083827,-750.84,0.00010999,2]
[333585317,1722259083850,-750.84,0.00010999,2]
[333585318,1722259083871,-750.84,0.00010999,2]
[333585319,1722259083893,-750.84,0.00010999,2]
[333585320,1722259083915,-750.84,0.00010999,2]
[333585321,1722259083937,-750.84,0.00010999,2]
[333585322,1722259083959,-750.84,0.00010999,2]
[333585323,1722259083981,-750.84,0.00010999,2]
[333585324,1722259084009,-750.95,0.00010999,2]
[333585325,1722259084033,-151.0,0.00010999,2]
[333585326,1722259084056,-151.0,0.00010999,2]
[333585327,1722259084078,-151.0,0.00010999,2]
[333585328,1722259084100,-151.0,0.00010999,2]
[333585329,1722259084122,-151.0,0.00010999,2]
[333585330,1722259084145,-500.0,0.00010999,2]
[333585331,1722259084166,-500.0,0.00010999,2]
[333585332,1722259084188,-500.0,0.00010999,2]
[333585333,1722259084213,-500.0,0.00010999,2]
[333585334,1722259084236,-500.0,0.00010999,2]
[333585335,1722259084263,-500.0,0.00010999,2]
[333585336,1722259084286,-500.0,0.00010999,2]
[333585337,1722259084311,-500.0,0.00010999,2]
[333585338,1722259084334,-500.0,0.00010999,2]
[333585339,1722259084357,-500.0,0.00010999,2]
[333585340,1722259084379,-454.20832584,0.00010999,2]
[333585341,1722259084401,-726.58038063,0.00010999,2]